fUST/lending_fUST_20240328
["ID","MTS","AMOUNT","RATE_DAILY","PERIOD"]
[320827164,1711585838225,-2996.19703685,0.0009,120]
[320827167,1711585838234,-998.90669893,0.0009,120]
[320827170,1711585838243,-1000.0,0.0009,120]
[320827173,1711585838252,-1013.0,0.0009,120]
[320827175,1711585838262,-2000.0,0.00090697,120]
[320827177,1711585838271,-692.75405232,0.00090798,7]
[320827178,1711585838280,-500.0,0.000909,120]
[320827179,1711585838290,-500.0,0.000919,120]
[320827180,1711585838299,-5000.0,0.00092,120]
[320827181,1711585838308,-1863.0,0.00092,60]
[320827182,1711585838317,-1000.0,0.00092,120]
[320827183,1711585838329,-44297.99022018,0.0009229,120]
[320827184,1711585838341,-500.0,0.00092797,120]
[320827185,1711585838352,-1956.79393674,0.00092897,14]
[320827186,1711585838363,-2000.0,0.00092899,120]
[320827187,1711585838374,-2000.0,0.00092899,120]
[320827188,1711585838385,-500.0,0.000929,120]
[320827190,1711585838396,-228.37459485,0.00092998,14]
[320827192,1711585838406,-685.88747989,0.00092998,14]
[320827194,1711585838416,-683.76633781,0.00092998,14]
[320827196,1711585838425,-291.35313108,0.00092998,14]
[320827198,1711585838435,-290.79650731,0.00092998,14]
[320827200,1711585838447,-2000.0,0.00092998,120]
[320827202,1711585838457,-286.78776068,0.00092999,14]
[320827204,1711585838468,-20000.0,0.00093,120]
[320827206,1711585838478,-150.0,0.00093899,120]
[320827208,1711585838489,-500.0,0.000939,120]
[320827211,1711585838500,-2000.0,0.00093999,120]
[320827212,1711585838511,-2000.0,0.00093999,120]
[320827215,1711585838522,-20000.0,0.00094,120]
[320827217,1711585838534,-154.98450155,0.00094897,14]
[320827219,1711585838546,-154.98450155,0.00094898,14]
[320827221,1711585838556,-500.0,0.000949,120]
[320827223,1711585838567,-187.30483325,0.00094998,14]
[320827226,1711585838578,-254.84078968,0.00094998,14]
[320827228,1711585838589,-2749.7413467,0.00094998,120]
[320827230,1711585838599,-187.70475787,0.00094998,2]
[320827232,1711585838609,-1573.60018062,0.00094998,14]
[320827234,1711585838620,-2523.92968757,0.00094998,14]
[320827236,1711585838630,-1257.05528769,0.00094998,14]
[320827238,1711585838641,-259.63948407,0.00094998,14]
[320827241,1711585838652,-864.38002108,0.00094998,14]
[320827243,1711585838663,-2000.0,0.00094999,120]
[320827245,1711585838673,-39036.29741404,0.00095,120]
[320827247,1711585838683,-692.75405232,0.00095798,7]
[320827249,1711585838693,-500.0,0.000959,120]
[320827251,1711585838704,-500.0,0.000969,120]
[320827253,1711585838715,-309.75026403,0.00096988,14]
[320827255,1711585838726,-406.40178043,0.00096988,14]
[320827258,1711585838737,-322.828959,0.00096988,14]
[320827260,1711585838747,-273.94777488,0.00096989,14]
[320827262,1711585838757,-2000.0,0.00096999,120]
[320827264,1711585838768,-101813.64365787,0.00096999,120]
[320827267,1711585838783,-1409.38881243,0.00096999,120]
[320827328,1711585843975,-500.0,0.00094998,120]
[320827329,1711585843986,-500.0,0.00094998,120]
[320827330,1711585843997,-500.0,0.00094998,120]
[320827331,1711585844007,-380.02827594,0.00094998,120]
[320827332,1711585844018,-154.09147447,0.00094998,120]
[320827333,1711585844030,-494.61063192,0.00096998,120]
[320827334,1711585844040,-253356.98600936,0.00096999,120]
[320827376,1711585846342,-230.91801744,0.00094899,7]
[320827378,1711585846353,-1080430.49561267,0.00096999,120]
[320827383,1711585846395,-6973.4,0.00096999,120]
[320827390,1711585846452,-325.33863209,0.00096999,120]
[320827771,1711587033028,-155.0,0.00061062,7]
[320827773,1711587033038,-900.00433445,0.00061062,7]
[320827775,1711587033047,-3381.67062974,0.00061062,7]
[320827777,1711587033057,-1185.39549048,0.00061063,7]
[320827779,1711587033066,-701.28786225,0.00061064,7]
[320827781,1711587033075,-53098.12274736,0.00061064,7]
[320827783,1711587033085,-155.0,0.00061065,7]
[320827785,1711587033094,-2719.6631103,0.00061065,7]
[320827788,1711587033103,-155.0,0.00061066,7]
[320827790,1711587033112,-582.17803763,0.00061099,7]
[320827792,1711587033123,-2401.54,0.000611,120]
[320827793,1711587033133,-908.53353973,0.00079977,7]
[320827794,1711587033142,-375.48983134,0.00079984,2]
[320827795,1711587033151,-1076.18142163,0.00079988,7]
[320827796,1711587033159,-4154.64320561,0.0008,30]
[320827797,1711587033169,-2106.8058307,0.0008,120]
[320827798,1711587033183,-2997.38355927,0.0008,120]
[320827799,1711587033195,-3312.25882714,0.0008,120]
[320827800,1711587033207,-1593.08814802,0.0008,120]
[320827801,1711587033216,-165.63542218,0.000819,14]
[320827802,1711587033227,-4051.17154,0.00082,120]
[320827804,1711587033236,-986.10741696,0.00082897,7]
[320827806,1711587033249,-1755.11565063,0.00082899,90]
[320827808,1711587033258,-151.101,0.000868,120]
[320827810,1711587033267,-500.0,0.000889,120]
[320827812,1711587033278,-944.32222944,0.00089699,2]
[320827814,1711587033287,-298.11639513,0.00089699,2]
[320827816,1711587033296,-944.32222944,0.00089724,2]
[320827818,1711587033305,-944.32222944,0.00089749,2]
[320827820,1711587033315,-944.32222944,0.00089774,2]
[320827822,1711587033324,-432.70295579,0.00089798,120]
[320828257,1711587038263,-67.29704421,0.00089798,120]
[320828258,1711587038273,-457.65306558,0.00089798,120]
[320828260,1711587038282,-37846.33529445,0.00089799,61]
[320828261,1711587038291,-244574.07436955,0.00089799,2]
[320828263,1711587038301,-944.32222944,0.00089799,2]
[320828265,1711587038312,-500.0,0.00089899,120]
[320828267,1711587038322,-500.0,0.000899,120]
[320828270,1711587038331,-500.0,0.000909,120]
[320828272,1711587038340,-500.0,0.000919,120]
[320828275,1711587038350,-920.79514438,0.00092147,14]
[320828277,1711587038359,-2467.86,0.00092807,120]
[320828279,1711587038368,-24900.0,0.00092808,30]
[320828281,1711587038379,-500.0,0.000929,120]
[320828283,1711587038390,-500.0,0.000939,120]
[320828285,1711587038400,-163.54562525,0.00094048,120]
[320828287,1711587038410,-2000.0,0.0009437,2]
[320828289,1711587038421,-384.8633624,0.00094899,7]
[320828291,1711587038431,-500.0,0.000949,120]
[320828293,1711587038440,-499.55639485,0.00095899,120]
[320828295,1711587038450,-500.0,0.000959,120]
[320828296,1711587038460,-5000.0,0.00096,120]
[320828299,1711587038471,-1516.25930099,0.00096029,4]
[320828301,1711587038481,-228.37459485,0.00096795,14]
[320828303,1711587038490,-500.0,0.00096795,120]
[320828304,1711587038500,-500.0,0.00096795,120]
[320828306,1711587038510,-683.76633781,0.00096795,14]
[320828309,1711587038520,-500.0,0.00096796,120]
[320828311,1711587038532,-500.0,0.00096796,120]
[320828313,1711587038541,-500.0,0.00096796,120]
[320828315,1711587038550,-500.0,0.00096796,120]
[320828316,1711587038559,-500.0,0.00096796,120]
[320828318,1711587038569,-500.0,0.00096796,120]
[320828320,1711587038578,-341.48515999,0.00096819,120]
[320828323,1711587038588,-341.48515999,0.00096848,120]
[320828324,1711587038598,-341.48515999,0.00096863,120]
[320828326,1711587038608,-341.48515999,0.00096864,120]
[320828329,1711587038618,-341.48515999,0.0009687,120]
[320828330,1711587038633,-6000.0,0.00096895,120]
[320828332,1711587038643,-864.38002108,0.00096896,14]
[320828333,1711587038652,-500.0,0.00096899,120]
[320828334,1711587038662,-500.0,0.000969,120]
[320828335,1711587038672,-167.15715,0.000969,2]
[320828336,1711587038681,-341.48515999,0.00096923,120]
[320828337,1711587038690,-341.48515999,0.00096967,120]
[320828338,1711587038700,-2467.86,0.00096996,120]
[320828339,1711587038709,-502.98,0.00096996,120]
[320828340,1711587038719,-437.05673737,0.00096997,14]
[320828341,1711587038728,-203.03174782,0.00096997,14]
[320828342,1711587038737,-314.96174656,0.00096997,14]
[320828343,1711587038746,-1213.40880535,0.00096997,14]
[320828344,1711587038757,-645.51970011,0.00096997,14]
[320828346,1711587038766,-273.94777488,0.00096997,14]
[320828348,1711587038775,-559.74068277,0.00096997,14]
[320828349,1711587038785,-210.33950346,0.00096997,14]
[320828351,1711587038794,-326.05635795,0.00096997,14]
[320828353,1711587038803,-215.88707238,0.00096997,14]
[320828355,1711587038813,-156.44769528,0.00096997,14]
[320828357,1711587038822,-197.26184568,0.00096997,14]
[320828359,1711587038832,-170.15193955,0.00096997,14]
[320828360,1711587038842,-180.14012251,0.00096997,14]
[320828362,1711587038852,-389.83114492,0.00096997,14]
[320828364,1711587038861,-406.40178043,0.00096997,14]
[320828366,1711587038873,-305.77499223,0.00096997,14]
[320828368,1711587038882,-309.75026403,0.00096997,14]
[320828370,1711587038891,-205.37769357,0.00096997,14]
[320828372,1711587038900,-500.0,0.00096997,120]
[320828374,1711587038909,-155.14583709,0.00096998,14]
[320828376,1711587038918,-3444.03044866,0.00096998,14]
[320828378,1711587038927,-2467.86,0.00096999,120]
[320828380,1711587038937,-500.0,0.00096999,120]
[320828382,1711587038946,-24000.0,0.00097,120]
[320828383,1711587038955,-2749.7413467,0.00097886,120]
[320828384,1711587038964,-187.30483325,0.00097886,14]
[320828385,1711587038974,-2523.92968757,0.00097886,14]
[320828386,1711587038983,-1257.05528769,0.00097886,14]
[320828387,1711587038992,-154.98450155,0.00097886,14]
[320828388,1711587039001,-160.0,0.00097887,120]
[320828389,1711587039010,-160.95956073,0.00097887,120]
[320828390,1711587039019,-2467.86,0.00097887,120]
[320828391,1711587039028,-2467.86,0.00097887,120]
[320828392,1711587039037,-2467.86,0.00097887,120]
[320828393,1711587039047,-2467.86,0.00097887,120]
[320828394,1711587039056,-500.0,0.00097887,120]
[320828395,1711587039065,-500.0,0.00097887,120]
[320828396,1711587039075,-100000.0,0.00097888,120]
[320828397,1711587039084,-500.0,0.000979,120]
[320828398,1711587039096,-150.0,0.00097999,120]
[320828399,1711587039105,-150.0,0.00097999,120]
[320828400,1711587039115,-2467.86,0.00098629,120]
[320828401,1711587039125,-2467.86,0.00098629,120]
[320828402,1711587039134,-1426.9171809,0.00098629,120]
[320828403,1711587039147,-795.25274607,0.00098629,120]
[320828404,1711587039158,-245.69007303,0.00098629,120]
[320828405,1711587039167,-2456.59054598,0.00098629,120]
[320828406,1711587040346,-4776.99182274,0.00096895,120]
[320828407,1711587040356,-11.26945402,0.00098629,120]
[320828408,1711587040366,-500.0,0.00098629,120]
[320828409,1711587040378,-500.0,0.00098629,120]
[320828410,1711587040387,-500.0,0.00098629,120]
[320828411,1711587040397,-500.0,0.00098629,120]
[320828412,1711587040407,-500.0,0.00098629,120]
[320828413,1711587040416,-500.0,0.0009863,120]
[320828414,1711587040425,-500.0,0.0009863,120]
[320828415,1711587040435,-833.23,0.0009863,120]
[320828417,1711587040445,-833.23,0.0009863,120]
[320828419,1711587040454,-833.23,0.0009863,120]
[320828421,1711587040464,-833.23,0.0009863,120]
[320828423,1711587040473,-833.23,0.0009863,120]
[320828425,1711587040482,-595.58872323,0.0009863,120]
[320828924,1711587045455,-155.14583709,0.00095899,120]
[320828926,1711587045464,-697.43087342,0.00096895,14]
[320828928,1711587045474,-500.0,0.00096896,120]
[320828930,1711587045483,-500.0,0.00096896,120]
[320828932,1711587045493,-500.0,0.00096896,120]
[320828934,1711587045502,-500.0,0.00096896,120]
[320828936,1711587045511,-500.0,0.00096896,120]
[320828938,1711587045520,-500.0,0.00096896,120]
[320828940,1711587045529,-500.0,0.00096996,120]
[320828942,1711587045538,-636.26,0.00096996,120]
[320828944,1711587045547,-500.0,0.00096996,120]
[320828946,1711587045557,-500.0,0.00096999,120]
[320828948,1711587045566,-500.0,0.00097887,120]
[320828950,1711587045575,-500.0,0.00097887,120]
[320828952,1711587045584,-500.0,0.00097887,120]
[320828954,1711587045593,-500.0,0.00098629,120]
[320828956,1711587045602,-500.0,0.00098629,120]
[320828958,1711587045611,-500.0,0.00098629,120]
[320828960,1711587045620,-500.0,0.00098629,120]
[320828962,1711587045633,-237.64127677,0.0009863,120]
[320828963,1711587045642,-833.23,0.0009863,120]
[320828966,1711587045652,-833.23,0.0009863,120]
[320828967,1711587045661,-833.23,0.0009863,120]
[320828969,1711587045670,-833.23,0.0009863,120]
[320828972,1711587045679,-520.6168837,0.0009863,120]
[320828975,1711587045705,-312.6131163,0.0009863,120]
[320828977,1711587045714,-833.23,0.0009863,120]
[320828980,1711587045723,-500.0,0.0009863,120]
[320828983,1711587045733,-500.0,0.0009863,120]
[320828985,1711587045742,-500.0,0.0009863,120]
[320828987,1711587045753,-500.23955689,0.0009863,120]
[320828989,1711587045762,-500.0,0.0009863,120]
[320828991,1711587045771,-500.81949895,0.0009863,120]
[320828994,1711587045781,-500.0,0.0009863,120]
[320828996,1711587045790,-151.99822037,0.0009863,120]
[320828998,1711587045800,-7420.85937079,0.0009863,120]
[320829000,1711587045809,-500.0,0.0009863,120]
[320829002,1711587045818,-500.0,0.0009863,120]
[320829004,1711587045829,-500.0,0.0009863,120]
[320829006,1711587045838,-500.0,0.0009863,120]
[320829008,1711587045847,-500.0,0.0009863,120]
[320829010,1711587045856,-500.0,0.0009863,120]
[320829012,1711587045865,-500.0,0.0009863,120]
[320829014,1711587045875,-500.0,0.0009863,120]
[320829016,1711587045884,-500.0,0.0009863,120]
[320829018,1711587045893,-500.0,0.0009863,120]
[320829020,1711587045902,-258.02,0.0009863,120]
[320829022,1711587045911,-500.3643179,0.0009863,120]
[320829024,1711587045920,-500.00000052,0.0009863,120]
[320829026,1711587045930,-500.09092304,0.0009863,120]
[320829036,1711587046016,-500.0,0.0009863,120]
[320829038,1711587046026,-500.0,0.0009863,120]
[320829040,1711587046035,-500.0,0.0009863,120]
[320829042,1711587046045,-500.0,0.0009863,120]
[320829044,1711587046054,-500.0,0.0009863,120]
[320829046,1711587046064,-628.91439089,0.0009863,120]
[320829048,1711587046073,-1135.14562884,0.0009863,7]
[320829050,1711587046082,-500.0,0.0009863,120]
[320829052,1711587046092,-500.0,0.0009863,120]
[320829054,1711587046101,-500.0,0.0009863,120]
[320829056,1711587046110,-500.0,0.0009863,120]
[320829058,1711587046119,-500.0,0.0009863,120]
[320829060,1711587046130,-500.0,0.0009863,120]
[320829062,1711587046139,-500.0,0.0009863,120]
[320829064,1711587046148,-500.0,0.0009863,120]
[320829066,1711587046158,-500.0,0.0009863,120]
[320829068,1711587046167,-726.64,0.0009863,120]
[320829070,1711587046176,-726.64,0.0009863,120]
[320829072,1711587046185,-726.64,0.0009863,120]
[320829074,1711587046194,-726.64,0.0009863,120]
[320829076,1711587046203,-726.64,0.0009863,120]
[320829078,1711587046212,-726.64,0.0009863,120]
[320829080,1711587046222,-726.64,0.0009863,120]
[320829083,1711587046238,-381.58752549,0.0009863,120]
[320829085,1711587046256,-345.05247451,0.0009863,120]
[320829087,1711587046266,-726.64,0.0009863,120]
[320829089,1711587046276,-214.3878253,0.0009863,120]
[320829092,1711587046287,-10.59153774,0.0009863,120]
[320829093,1711587046296,-500.0,0.0009863,120]
[320829095,1711587046306,-546.62,0.0009863,120]
[320829098,1711587046315,-500.0,0.0009863,120]
[320829099,1711587046325,-500.0,0.0009863,120]
[320829101,1711587046334,-500.0,0.0009863,120]
[320829103,1711587046344,-591.42263405,0.0009863,120]
[320829105,1711587046353,-3345.47,0.0009863,120]
[320829108,1711587046367,-3345.47,0.0009863,120]
[320829110,1711587046383,-3345.47,0.0009863,120]
[320829112,1711587046392,-3345.47,0.0009863,120]
[320829114,1711587046402,-3345.47,0.0009863,120]
[320829116,1711587046411,-3345.47,0.0009863,120]
[320829118,1711587046420,-3345.47,0.0009863,120]
[320829120,1711587046430,-3345.47,0.0009863,120]
[320829122,1711587046439,-3345.47,0.0009863,120]
[320829124,1711587046448,-500.0,0.0009863,90]
[320829126,1711587046457,-500.0,0.0009863,90]
[320829128,1711587046466,-500.0,0.0009863,90]
[320829130,1711587046476,-500.0,0.0009863,90]
[320829132,1711587046485,-500.0,0.0009863,90]
[320829134,1711587046495,-500.0,0.0009863,90]
[320829136,1711587046504,-500.0,0.0009863,90]
[320829138,1711587046513,-500.0,0.0009863,90]
[320829140,1711587046522,-500.0,0.0009863,90]
[320829142,1711587046532,-500.0,0.0009863,90]
[320829144,1711587046543,-500.0,0.0009863,90]
[320829146,1711587046552,-397.99338994,0.0009863,120]
[320829148,1711587046562,-500.0,0.0009863,120]
[320829150,1711587046572,-500.0,0.0009863,21]
[320829152,1711587046581,-364.63,0.0009863,21]
[320829154,1711587046590,-500.0,0.0009863,120]
[320829155,1711587046599,-500.0,0.0009863,120]
[320829157,1711587046609,-500.0,0.0009863,120]
[320829159,1711587046618,-500.0,0.0009863,120]
[320829161,1711587046630,-500.0,0.0009863,120]
[320829163,1711587046639,-152.95,0.0009863,120]
[320829165,1711587046649,-500.0,0.0009863,120]
[320829167,1711587046658,-500.0,0.0009863,120]
[320829169,1711587046667,-252.62,0.0009863,120]
[320829171,1711587046676,-500.0,0.0009863,120]
[320829174,1711587046685,-500.0,0.0009863,120]
[320829176,1711587046695,-500.0,0.0009863,120]
[320829178,1711587046704,-445.68,0.0009863,120]
[320829179,1711587046713,-500.0,0.0009863,60]
[320829181,1711587046723,-357.41,0.0009863,60]
[320829183,1711587046732,-500.0,0.0009863,120]
[320829185,1711587046741,-1000.0,0.0009863,2]
[320829187,1711587046750,-616.52377889,0.0009863,2]
[320829189,1711587046760,-500.0,0.0009863,120]
[320829191,1711587046769,-501.3095125,0.0009863,120]
[320829193,1711587046778,-150.0,0.00098885,120]
[320829196,1711587046788,-150.0,0.00098899,120]
[320829198,1711587046797,-500.0,0.000989,120]
[320829199,1711587046806,-500.0,0.00098999,90]
[320829202,1711587046816,-2467.86,0.00098999,120]
[320829203,1711587046825,-502.26318096,0.00099,120]
[320829205,1711587046834,-588.5184388,0.00099756,90]
[320829207,1711587046844,-384.8633624,0.00099899,7]
[320829209,1711587046853,-500.0,0.000999,120]
[320829212,1711587046862,-3274.41464395,0.000999,2]
[320829213,1711587046872,-210.0,0.0009997,35]
[320829216,1711587046883,-150.5,0.0009997,35]
[320829217,1711587046892,-603.22763929,0.00099979,100]
[320829219,1711587046901,-726.64,0.00099979,120]
[320829221,1711587046910,-3345.47,0.00099979,120]
[320829223,1711587046919,-210.0,0.0009998,35]
[320829225,1711587046928,-150.5,0.0009998,35]
[320829227,1711587046938,-210.0,0.0009999,35]
[320829229,1711587046947,-150.5,0.0009999,35]
[320829231,1711587046957,-500.0,0.00099997,120]
[320829233,1711587046966,-833.23,0.00099998,120]
[320829235,1711587046975,-833.23,0.00099998,120]
[320829237,1711587046984,-726.64,0.00099998,120]
[320829239,1711587046993,-3345.47,0.00099998,120]
[320829241,1711587047003,-500.0,0.00099998,120]
[320829243,1711587047012,-500.0,0.00099998,120]
[320829245,1711587047021,-270.55201027,0.00099999,14]
[320829247,1711587047030,-833.23,0.00099999,120]
[320829249,1711587047039,-833.23,0.00099999,120]
[320829251,1711587047048,-833.23,0.00099999,120]
[320829253,1711587047057,-833.23,0.00099999,120]
[320829255,1711587047066,-833.23,0.00099999,120]
[320829257,1711587047075,-833.23,0.00099999,120]
[320829259,1711587047085,-833.23,0.00099999,120]
[320829261,1711587047094,-833.23,0.00099999,120]
[320829263,1711587047105,-833.23,0.00099999,120]
[320829265,1711587047114,-833.31000039,0.00099999,120]
[320829267,1711587047125,-726.64,0.00099999,120]
[320829269,1711587047134,-726.64,0.00099999,120]
[320829271,1711587047143,-726.64,0.00099999,120]
[320829273,1711587047152,-726.64,0.00099999,120]
[320829275,1711587047161,-726.64,0.00099999,120]
[320829277,1711587047169,-726.64,0.00099999,120]
[320829279,1711587047179,-726.64,0.00099999,120]
[320829281,1711587047188,-726.64,0.00099999,120]
[320829283,1711587047197,-726.64,0.00099999,120]
[320829285,1711587047206,-726.64,0.00099999,120]
[320829287,1711587047215,-726.64,0.00099999,120]
[320829289,1711587047225,-726.64,0.00099999,120]
[320829291,1711587047235,-726.79611916,0.00099999,120]
[320829293,1711587047249,-3345.47,0.00099999,120]
[320829295,1711587047258,-3345.47,0.00099999,120]
[320829297,1711587047268,-3345.47,0.00099999,120]
[320829299,1711587047277,-3345.47,0.00099999,120]
[320829301,1711587047286,-3345.47,0.00099999,120]
[320829303,1711587047295,-3345.47,0.00099999,120]
[320829304,1711587047304,-3345.47,0.00099999,120]
[320829307,1711587047314,-3345.47,0.00099999,120]
[320829309,1711587047323,-3345.47,0.00099999,120]
[320829310,1711587047334,-3345.47,0.00099999,120]
[320829313,1711587047343,-3345.47,0.00099999,120]
[320829315,1711587047352,-3345.47,0.00099999,120]
[320829317,1711587047361,-3345.695704,0.00099999,120]
[320829318,1711587047370,-500.0,0.00099999,90]
[320829320,1711587047381,-500.0,0.00099999,90]
[320829322,1711587047394,-500.0,0.00099999,90]
[320829324,1711587047403,-500.0,0.00099999,90]
[320829326,1711587047412,-557.88635296,0.00099999,90]
[320829328,1711587047421,-410.42274239,0.00099999,120]
[320829329,1711587047430,-2467.86,0.00099999,120]
[320829330,1711587047439,-2467.86,0.00099999,120]
[320829331,1711587047448,-2467.86,0.00099999,120]
[320829332,1711587047457,-2467.86,0.00099999,120]
[320829333,1711587047466,-2467.86,0.00099999,120]
[320829334,1711587047475,-2467.86,0.00099999,120]
[320829335,1711587047484,-2467.86,0.00099999,120]
[320829336,1711587047493,-2467.86,0.00099999,120]
[320829337,1711587047502,-2467.86,0.00099999,120]
[320829338,1711587047510,-2467.86,0.00099999,120]
[320829339,1711587047519,-2467.86,0.00099999,120]
[320829341,1711587047528,-2467.96987803,0.00099999,120]
[320829343,1711587047537,-500.0,0.00099999,120]
[320829345,1711587047546,-500.0,0.00099999,120]
[320829347,1711587047556,-500.0,0.00099999,120]
[320829348,1711587047565,-321.84,0.00099999,120]
[320829350,1711587047574,-500.0,0.00099999,120]
[320829353,1711587047584,-500.0,0.00099999,120]
[320829354,1711587047594,-283653.75749712,0.001,120]
[320829357,1711587047607,-2924.83257661,0.001,120]
[320829361,1711587047644,-155.0,0.00095898,14]
[320829363,1711587047654,-531.11520753,0.00096895,14]
[320829365,1711587047663,-425.2631482,0.00096895,14]
[320829367,1711587047673,-500.0,0.00099999,120]
[320829369,1711587047683,-198.80914672,0.00099999,120]
[320829371,1711587047692,-20775.04594986,0.001,120]
[320829983,1711587276219,645.51969911,0.00022,2]
[320829984,1711587276752,187.30483225,0.0002104,15]
[320829985,1711587277841,2523.92968657,0.00036746,30]
[320829995,1711588163204,-683.76633681,0.0003,2]
[320829996,1711588163227,-799.087986,0.00034646,2]
[320829997,1711588163250,-621.1290314,0.00035088,2]
[320829998,1711588163271,-2834.957094,0.00035412,3]
[320829999,1711588163291,-1237.68337738,0.00036543,4]
[320830000,1711588163319,-700.00337124,0.00039645,4]
[320830001,1711588163342,-799.087986,0.00039646,2]
[320830002,1711588163363,-150.00028805,0.0005,120]
[320830042,1711588232538,-381.79842886,0.00036543,2]
[320830044,1711588232551,-277.08038044,0.00036543,2]
[320830113,1711588238536,-1526.04565709,0.00036543,2]
[320830114,1711588238599,-2153.52480077,0.00036543,2]
[320830115,1711588238609,-864.38002008,0.00036543,2]
[320830116,1711588238618,-150.98490151,0.000609,2]
[320830117,1711588238631,-200.0,0.0007,120]
[320830118,1711588238641,-424.55227713,0.00079887,2]
[320830119,1711588238651,-26952.34214537,0.00079987,120]
[320830120,1711588238661,-658.98002504,0.0008,50]
[320830121,1711588238670,-228.03687726,0.0008,120]
[320830122,1711588238679,-250.0,0.0008,120]
[320830123,1711588238688,-1000.0,0.0008,120]
[320830124,1711588238697,-24900.0,0.00080075,2]
[320830125,1711588238706,-424.55227713,0.0008239,2]
[320830126,1711588238716,-1000.0,0.00083,120]
[320830127,1711588238725,-424.55227713,0.00084894,2]
[320830128,1711588238734,-1000.0,0.00085,120]
[320830129,1711588238743,-603.90691138,0.00085498,7]
[320830130,1711588238752,-151.101,0.000868,120]
[320830131,1711588238761,-424.55227713,0.00087397,2]
[320830132,1711588238770,-500.0,0.000879,120]
[320830133,1711588238779,-652.1127159,0.00087999,7]
[320830134,1711588238788,-2000.0,0.00087999,120]
[320830135,1711588238798,-2000.0,0.00087999,120]
[320830136,1711588238807,-2000.0,0.00087999,120]
[320830137,1711588238817,-500.0,0.00087999,120]
[320830138,1711588238826,-494.61063191,0.00087999,120]
[320830139,1711588238846,-636.06467203,0.00087999,120]
[320830140,1711588238858,-1000.0,0.00088,120]
[320830141,1711588238867,-25000.0,0.00088,120]
[320830142,1711588238878,-80542.44206262,0.00088,120]
[320830143,1711588238888,-500.0,0.000889,120]
[320830144,1711588238897,-551.24317002,0.00089797,7]
[320830145,1711588238907,-500.0,0.000899,120]
[320830146,1711588238916,-424.55227713,0.000899,2]
[320830147,1711588238926,-900.02359868,0.00089998,7]
[320830148,1711588238935,-2000.0,0.00089999,120]
[320830149,1711588238944,-18923.16764723,0.0009,61]
[320830150,1711588238953,-23182.61000652,0.0009,120]
[320830168,1711588243729,-4307.42534507,0.0009,120]
[320830169,1711588243786,-11664.85234932,0.0009,120]
[320830170,1711588243799,-2035.0,0.0009,120]
[320830171,1711588243812,-1000.0,0.0009,120]
[320830172,1711588243825,-500.0,0.0009041,120]
[320830173,1711588243837,-500.0,0.0009041,120]
[320830174,1711588243849,-500.0,0.0009041,120]
[320830175,1711588243861,-500.0,0.0009041,120]
[320830176,1711588243874,-500.0,0.0009041,120]
[320830177,1711588243884,-500.0,0.0009041,120]
[320830178,1711588243894,-600.09944698,0.0009041,120]
[320830179,1711588243905,-500.0,0.0009041,120]
[320830180,1711588243918,-201.85256798,0.0009041,120]
[320830181,1711588243929,-499.55639485,0.0009041,120]
[320830182,1711588243940,-500.0,0.0009041,120]
[320830183,1711588243951,-500.0,0.0009041,120]
[320830184,1711588243962,-500.0,0.0009041,120]
[320830185,1711588243973,-500.0,0.0009041,120]
[320830186,1711588243984,-6000.0,0.0009041,120]
[320830187,1711588243996,-3410.60682879,0.0009041,120]
[320830188,1711588244007,-500.0,0.0009041,120]